bitfinex/quotes_ETHUSD_20230118
["timestamp","ask_amount","ask_price","bid_price","bid_amount"]
[1674005020094,16.08751801,1573.7,1573.4,0.09545535]
[1674005020304,3.11662407,1573.6,1573.4,0.09545535]
[1674005020561,1.349,1573.5,1573.4,0.09545535]
[1674005021351,0.23,1573.5,1573.4,0.09545535]
[1674005022778,6.58525,1573.5,1573.4,0.09545535]
[1674005022942,0.26189394,1573.5,1573.4,0.09545535]
[1674005023158,0.23,1573.5,1573.4,0.09545535]
[1674005024676,0.23,1573.5,1573.4,7.57011535]
[1674005024826,8.45158995,1573.8,1573.4,16.82104342]
[1674005024827,0.03189394,1573.8,1573.4,16.82104342]
[1674005025041,3.11662407,1573.8,1573.4,16.82104342]
[1674005025287,3.78046014,1573.8,1573.4,23.17670342]
[1674005025516,3.11662407,1573.8,1573.4,23.17670342]
[1674005025826,3.78046014,1573.8,1573.4,23.17670342]
[1674005026232,0.23,1573.7,1573.4,23.17670342]
[1674005032351,0.23,1573.8,1573.4,23.17670342]
[1674005032505,0.23,1573.8,1573.4,21.72770342]
[1674005035690,0.23,1573.8,1573.4,20.60870342]
[1674005035898,3.11662407,1573.7,1573.4,6.49987419]
[1674005036166,0.23,1573.6,1573.4,0.14421419]
[1674005036493,0.23,1573.6,1573.4,0.09545535]
[1674005037523,3.34662407,1573.6,1573.4,0.09545535]
[1674005039641,9.70151407,1573.6,1573.4,0.09545535]
[1674005039790,9.73340801,1573.6,1573.4,0.09545535]
[1674005039996,3.37851801,1573.6,1573.4,0.09545535]
[1674005040265,3.34662407,1573.6,1573.4,6.45107535]
[1674005040436,3.34662407,1573.6,1573.4,6.49983419]
[1674005042218,3.34662407,1573.6,1573.4,0.14421419]
[1674005042475,3.34662407,1573.6,1573.4,0.09545535]
[1674005044584,3.34662407,1573.6,1573.5,0.38148796]
[1674005045991,5.11414275,1573.6,1573.5,0.38148796]
[1674005046273,5.14603669,1573.6,1573.5,0.38148796]
[1674005047018,27.4838371,1573.6,1573.5,0.38148796]
[1674005047145,35.02078782,1573.6,1573.5,0.38148796]
[1674005047352,32.58264265,1573.6,1573.5,0.38148796]
[1674005047621,32.25255129,1573.6,1573.5,0.38148796]
[1674005048144,33.91437393,1573.6,1573.5,0.38148796]
[1674005048297,33.91363302,1573.6,1573.5,0.38148796]
[1674005048510,33.91363586,1573.6,1573.5,0.38148796]
[1674005049308,36.45385721,1573.6,1573.5,0.38148796]
[1674005049451,0.25473402,1573.4,1573.3,0.04919694]
[1674005049667,25.77523566,1573.4,1573.3,0.04919694]
[1674005049880,31.3438816,1573.4,1573.3,0.04919694]
[1674005050193,32.00904063,1573.4,1573.3,0.04919694]
[1674005051049,35.8621032,1573.4,1573.3,0.04919694]
[1674005051320,32.00904063,1573.4,1573.3,0.04919694]
[1674005051680,30.67872257,1573.4,1573.3,0.04919694]
[1674005052368,31.34336388,1573.4,1573.3,0.04919694]
[1674005052583,30.34562534,1573.4,1573.3,0.04919694]
[1674005052747,30.67872257,1573.4,1573.3,0.04919694]
[1674005053153,32.00904063,1573.4,1573.3,0.04919694]
[1674005053695,30.67872257,1573.4,1573.3,0.04919694]
[1674005054640,31.08826329,1573.4,1573.3,0.04919694]
[1674005054817,30.42398855,1573.4,1573.3,0.04919694]
[1674005054986,31.0882854,1573.4,1573.3,0.04919694]
[1674005055195,30.42398855,1573.4,1573.3,0.04919694]
[1674005055745,31.08803211,1573.4,1573.3,0.04919694]
[1674005056712,34.27970071,1573.4,1573.3,0.04919694]
[1674005057015,37.6867605,1573.4,1573.3,0.04919694]
[1674005057177,36.05228023,1573.4,1573.3,0.04919694]
[1674005057602,33.19193028,1573.4,1573.3,0.04919694]
[1674005057859,31.86161222,1573.4,1573.3,0.04919694]
[1674005058929,32.52528455,1573.4,1573.3,0.04919694]
[1674005059247,30.08993793,1573.4,1573.3,0.04919694]
[1674005059395,28.65686854,1573.4,1573.3,0.04919694]
[1674005060040,34.41088053,1573.4,1573.3,0.04919694]
[1674005060396,34.41126199,1573.4,1573.3,0.04919694]
[1674005060609,35.85426199,1573.4,1573.3,0.04919694]
[1674005061601,31.99969864,1573.4,1573.3,0.04919694]
[1674005061830,32.66305108,1573.4,1573.3,0.04919694]
[1674005062043,31.66768887,1573.4,1573.3,0.04919694]
[1674005062617,30.09984195,1573.4,1573.3,0.04919694]
[1674005062975,28.33249801,1573.4,1573.3,0.04919694]
[1674005063706,26.88949801,1573.4,1573.3,0.04919694]
[1674005063917,19.08983801,1573.4,1573.3,0.04919694]
[1674005064396,19.08983801,1573.4,1573.3,1.14319694]
[1674005064397,6.14851801,1573.4,1573.3,1.14319694]
[1674005064609,3.14851801,1573.4,1573.3,1.14319694]
[1674005064776,3.11662407,1573.4,1573.3,1.14319694]
[1674005065852,0.03189394,1573.5,1573.3,1.14319694]
[1674005066017,3.11662407,1573.5,1573.3,1.14319694]
[1674005066228,0.03189394,1573.6,1573.3,2.42527385]
[1674005066434,3.11662407,1573.6,1573.3,16.58637385]
[1674005066686,3.11662407,1573.6,1573.3,16.63513269]
[1674005068161,0.23,1573.5,1573.3,16.63513269]
[1674005068644,0.23,1573.5,1573.3,2.47403269]
[1674005068855,0.23,1573.5,1573.3,1.44520002]
[1674005069289,9.70199407,1573.5,1573.3,0.35120002]
[1674005069525,9.73388801,1573.5,1573.3,0.35120002]
[1674005074707,3.11662407,1573.4,1573.3,0.35120002]
[1674005074930,16.05794407,1573.4,1573.3,0.34746163]
[1674005075203,22.44549801,1573.4,1573.3,0.34746163]
[1674005076289,22.44549801,1573.4,1573.3,0.04545855]
[1674005076671,24.21279915,1573.4,1573.3,0.04545855]
[1674005082808,28.20816136,1573.4,1573.3,0.04545855]
[1674005083023,30.23657142,1573.4,1573.3,0.04545855]
[1674005083377,31.23193363,1573.4,1573.3,0.04545855]
[1674005083604,30.56858119,1573.4,1573.3,0.04545855]
[1674005083785,28.98580892,1573.4,1573.3,0.04545855]
[1674005083953,30.90353704,1573.4,1573.3,0.04545855]
[1674005084320,31.23611655,1573.4,1573.2,0.06232356]
[1674005084544,12.71431191,1573.3,1573.2,0.06232356]
[1674005084846,31.81438585,1573.3,1573.2,0.06232356]
[1674005085060,33.39715812,1573.3,1573.2,0.06232356]
[1674005085252,32.06702147,1573.3,1573.2,0.06232356]
[1674005085590,33.39715812,1573.3,1573.2,0.06232356]
[1674005086199,32.39955563,1573.3,1573.2,0.06232356]
[1674005087426,34.0624532,1573.3,1573.2,0.06232356]
[1674005087899,32.73231655,1573.3,1573.2,0.06232356]
[1674005088107,36.58686124,1573.3,1573.2,0.06232356]
[1674005088265,32.73231655,1573.3,1573.2,0.06232356]
[1674005089055,36.58530401,1573.3,1573.2,0.06232356]
[1674005089285,32.73231655,1573.3,1573.2,0.06232356]
[1674005089628,36.58374571,1573.3,1573.2,0.06232356]
[1674005089874,32.73231655,1573.3,1573.2,0.06232356]
[1674005090085,46.73231655,1573.3,1573.2,0.06232356]
[1674005090538,55.97601064,1573.3,1573.2,0.06232356]
[1674005090680,41.97601064,1573.3,1573.2,0.06232356]
[1674005091730,40.31311307,1573.3,1573.2,0.06232356]
[1674005092317,41.97601064,1573.3,1573.2,0.06232356]
[1674005092790,41.97571149,1573.3,1573.2,0.06232356]
[1674005093256,40.64591655,1573.3,1573.2,0.06232356]
[1674005093628,51.20995314,1573.3,1573.2,0.00032356]
[1674005094087,1.5,1573.2,1573.1,0.10979268]
[1674005094416,31.029907,1573.2,1573.1,0.10979268]
[1674005094732,32.40004985,1573.2,1573.1,0.10979268]
[1674005096731,33.39700468,1573.2,1573.1,0.10979268]
[1674005096905,32.40004985,1573.2,1573.1,0.10979268]
[1674005097534,33.39688833,1573.2,1573.1,0.10979268]
[1674005098943,31.23206934,1573.2,1573.1,0.10979268]
[1674005099366,30.23523086,1573.2,1573.1,0.10979268]
[1674005099539,31.23206934,1573.2,1573.1,0.10979268]
[1674005099955,30.23523086,1573.2,1573.1,0.10979268]
[1674005100550,28.56923086,1573.2,1573.1,0.10979268]
[1674005100917,26.98645859,1573.2,1573.1,0.10979268]
[1674005101335,28.59543303,1573.2,1573.1,0.10979268]
[1674005101543,26.98645859,1573.2,1573.1,0.10979268]
[1674005102079,28.92757063,1573.2,1573.1,0.10979268]
[1674005102625,29.15757063,1573.2,1573.1,0.10979268]
[1674005102965,1.22352959,1573.0,1572.9,0.1212633]
[1674005103274,23.64196366,1573.0,1572.9,0.1212633]
[1674005103492,23.6738576,1573.0,1572.9,0.1212633]
[1674005104538,25.44259612,1573.0,1572.9,0.1212633]
[1674005105037,24.3383548,1573.0,1572.9,0.1212633]
[1674005105375,27.88749713,1573.0,1572.9,0.1212633]
[1674005105588,31.82876788,1573.0,1572.9,0.1212633]
[1674005106159,31.49633182,1573.0,1572.9,0.1212633]
[1674005106618,29.89056387,1573.0,1572.9,0.1212633]
[1674005107268,28.78626002,1573.0,1572.9,0.1212633]
[1674005107633,29.89048828,1573.0,1572.9,0.1212633]
[1674005108160,28.44248828,1573.0,1572.9,0.1212633]
[1674005108526,25.5548576,1573.0,1572.9,0.1212633]
[1674005108675,16.1975876,1573.0,1572.9,0.1212633]
[1674005108890,9.6103176,1573.0,1572.9,0.1212633]
[1674005109316,3.2530476,1573.0,1572.9,0.1212633]
[1674005109681,3.22115366,1573.0,1572.9,0.1212633]
[1674005110051,9.57842366,1573.0,1572.9,0.1212633]
[1674005110261,9.6103176,1573.0,1572.9,0.1212633]
[1674005110744,9.8403176,1573.0,1572.9,0.1212633]
[1674005111482,24.32345578,1573.0,1572.9,0.1212633]
[1674005112576,25.32029426,1573.0,1572.9,0.1212633]
[1674005112808,24.65589184,1573.0,1572.9,0.1212633]
[1674005113629,25.98529271,1573.0,1572.9,0.1212633]
[1674005114272,27.98845423,1573.0,1572.9,0.1212633]
[1674005114484,31.37792181,1573.0,1572.9,0.1212633]
[1674005114700,29.76980445,1573.0,1572.9,0.1212633]
[1674005115050,31.37792181,1573.0,1572.9,0.1212633]
[1674005118001,0.00026971,1572.8,1572.6,0.11402587]
[1674005118185,9.47511407,1572.7,1572.6,0.11402587]
[1674005118396,9.73700801,1572.7,1572.6,0.11402587]
[1674005118611,3.37851801,1572.7,1572.6,0.11402587]
[1674005118826,3.34662407,1572.7,1572.6,0.11402587]
[1674005119806,11.47490004,1572.7,1572.6,0.11402587]
[1674005120128,11.50679398,1572.7,1572.6,0.11402587]
[1674005121437,10.4023962,1572.7,1572.6,0.11402587]
[1674005121649,11.50678081,1572.7,1572.6,0.11402587]
[1674005124483,25.22221581,1572.7,1572.6,0.11402587]
[1674005124962,24.55645491,1572.7,1572.6,0.11402587]
[1674005125224,25.22217256,1572.7,1572.6,0.11402587]
[1674005125596,18.86363781,1572.7,1572.6,0.11402587]
[1674005127495,17.86555552,1572.7,1572.6,0.11402587]
[1674005128341,18.19796491,1572.7,1572.6,0.11402587]
[1674005128645,24.55645491,1572.7,1572.6,0.11402587]
[1674005129264,24.88914901,1572.7,1572.6,0.11402587]
[1674005129596,25.88738702,1572.7,1572.6,0.11402587]
[1674005129744,24.55661063,1572.7,1572.6,0.11402587]
[1674005130164,28.88738702,1572.7,1572.6,0.11402587]
[1674005130543,29.16472799,1572.7,1572.6,0.11402587]
[1674005134814,3.11662407,1572.7,1572.6,0.58435308]
[1674005136572,3.34662407,1572.7,1572.6,0.58435308]
[1674005139533,0.23,1572.7,1572.6,0.58435308]
[1674005139746,0.00026971,1572.8,1572.6,19.66102308]
[1674005140003,0.00026971,1572.8,1572.6,13.35089192]
[1674005140318,0.00026971,1572.8,1572.6,0.6297738]
[1674005140319,4.01231251,1572.8,1572.6,0.6297738]
[1674005140635,10.37041251,1572.8,1572.6,0.58101496]
[1674005140941,10.40230645,1572.8,1572.6,0.58101496]
[1674005141324,10.20230645,1572.8,1572.6,0.58101496]
[1674005141548,10.17203674,1572.8,1572.6,0.58101496]
[1674005141781,11.17027475,1572.8,1572.6,0.58101496]
[1674005141991,17.52837475,1572.8,1572.6,0.58101496]
[1674005142322,0.66541873,1572.7,1572.6,0.58101496]
[1674005142495,0.46541873,1572.7,1572.6,0.58101496]
[1674005142700,11.04491345,1572.7,1572.6,0.58101496]
[1674005142892,11.07680739,1572.7,1572.6,0.58101496]
[1674005143101,12.0750454,1572.7,1572.6,0.58101496]
[1674005143316,11.8750454,1572.7,1572.6,0.58101496]
[1674005143545,12.1050454,1572.7,1572.6,0.58101496]
[1674005144177,11.9050454,1572.7,1572.6,0.58101496]
[1674005145004,10.70680739,1572.7,1572.6,0.58101496]
[1674005145545,10.50680739,1572.7,1572.6,0.58101496]
[1674005146275,10.30680739,1572.7,1572.6,0.58101496]
[1674005147050,10.10680739,1572.7,1572.6,0.58101496]
[1674005147262,11.1050454,1572.7,1572.6,0.58101496]
[1674005147645,10.9050454,1572.7,1572.6,0.58101496]
[1674005148360,10.7050454,1572.7,1572.6,0.58101496]
[1674005149111,10.5050454,1572.7,1572.6,0.58101496]
[1674005149889,3.9465554,1572.7,1572.6,0.58101496]
[1674005150050,2.91642345,1572.7,1572.6,0.58101496]
[1674005150262,1.33438065,1572.7,1572.6,1.51796792]
[1674005150463,0.03,1572.7,1572.6,1.51796792]
[1674005150669,1.03013195,1572.9,1572.6,15.67074792]
[1674005150920,1.1042426,1572.8,1572.6,15.71950676]
[1674005151126,0.002,1572.8,1572.6,15.71950676]
[1674005151357,4.11486208,1572.9,1572.7,1.57195068]
[1674005151723,3.91486208,1572.9,1572.7,1.57195068]
[1674005152037,11.60333847,1572.9,1572.6,9.37661676]
[1674005152247,11.43523241,1572.9,1572.6,9.36061676]
[1674005152954,11.23523241,1572.9,1572.6,9.36061676]
[1674005153508,11.03523241,1572.9,1572.6,9.36061676]
[1674005154035,10.83523241,1572.9,1572.6,8.4236638]
[1674005154244,9.50445602,1572.9,1572.6,8.4236638]
[1674005154707,9.30445602,1572.9,1572.6,8.4236638]
[1674005154892,0.66658178,1572.8,1572.6,14.7825538]
[1674005155108,0.46658178,1572.9,1572.7,10.02524868]
[1674005155309,0.46658178,1572.9,1572.8,1.00252487]
[1674005155547,4.46719992,1573.0,1572.8,1.00252487]
[1674005155879,4.23530598,1573.0,1572.8,13.71862487]
[1674005156189,4.23530598,1573.0,1572.8,7.40930371]
[1674005156397,4.23530598,1573.0,1572.8,0.04875884]
[1674005156398,3.11662407,1572.9,1572.8,0.04875884]
[1674005156618,10.80508046,1572.9,1572.7,0.00475868]
[1674005156762,2.91662407,1572.8,1572.7,0.00475868]
[1674005157211,3.14662407,1572.8,1572.7,0.00475868]
[1674005157453,2.94662407,1572.8,1572.7,0.00475868]
[1674005158266,2.94662407,1572.8,1572.6,2.01601496]
[1674005158452,9.30479407,1572.8,1572.6,2.01601496]
[1674005158664,9.13668801,1572.8,1572.6,0.58101496]
[1674005159402,8.93668801,1572.8,1572.6,0.58101496]
[1674005160251,8.73668801,1572.8,1572.6,0.58101496]
[1674005161096,8.53668801,1572.8,1572.6,0.58101496]
[1674005162180,8.33668801,1572.8,1572.6,0.58101496]
[1674005162588,9.6674644,1572.8,1572.6,0.58101496]
[1674005162992,9.4674644,1572.8,1572.6,0.58101496]
[1674005163206,10.46691059,1572.8,1572.6,0.58101496]
[1674005163440,1.33077639,1572.7,1572.6,0.58101496]
[1674005163711,18.85613155,1572.7,1572.6,0.58101496]
[1674005163927,19.08951483,1572.7,1572.6,0.58101496]
[1674005164286,25.44800483,1572.7,1572.6,0.58101496]
[1674005164496,23.9157391,1572.7,1572.6,0.58101496]
[1674005165103,0.38572379,1572.5,1572.4,0.12538595]
[1674005165485,11.55696614,1572.5,1572.4,0.12538595]
[1674005165667,17.27813883,1572.5,1572.4,0.12538595]
[1674005165886,17.28203277,1572.5,1572.4,0.12538595]
[1674005166049,17.08203277,1572.5,1572.4,0.12538595]
[1674005166517,23.44133277,1572.5,1572.4,0.12538595]
[1674005166944,23.24133277,1572.5,1572.4,0.12538595]
[1674005167771,23.04133277,1572.5,1572.4,0.12538595]
[1674005168032,26.04133277,1572.5,1572.4,0.12538595]
[1674005168174,27.3735874,1572.5,1572.4,0.12538595]
[1674005168531,27.77858257,1572.5,1572.4,0.12538595]
[1674005168759,26.17439643,1572.5,1572.4,0.12538595]
[1674005169440,25.97439643,1572.5,1572.4,0.12538595]
[1674005170166,25.77439643,1572.5,1572.4,0.12538595]
[1674005170504,26.77245739,1572.5,1572.4,0.12538595]
[1674005171094,27.67709697,1572.5,1572.4,0.12538595]
[1674005171342,26.67903601,1572.5,1572.4,0.12538595]
[1674005171512,28.61271861,1572.5,1572.4,0.12538595]
[1674005171722,26.47658162,1572.5,1572.4,0.12538595]
[1674005172621,26.27658162,1572.5,1572.4,0.12538595]
[1674005172793,25.94415325,1572.5,1572.4,0.12538595]
[1674005173240,27.27395349,1572.5,1572.4,0.12538595]
[1674005173463,27.07395349,1572.5,1572.4,0.12538595]
[1674005173860,26.07658162,1572.5,1572.4,0.12538595]
[1674005174048,27.73833271,1572.5,1572.4,0.12538595]
[1674005174537,27.81271861,1572.5,1572.4,0.12538595]
[1674005174669,26.20853247,1572.5,1572.4,0.12538595]
[1674005174868,27.81271861,1572.5,1572.4,0.12538595]
[1674005175670,29.14157892,1572.5,1572.4,0.12538595]
[1674005175986,27.14743205,1572.5,1572.4,0.12538595]
[1674005176365,21.45247471,1572.5,1572.4,0.12538595]
[1674005176717,5.90322404,1572.5,1572.4,0.12538595]
[1674005176939,4.80087618,1572.5,1572.4,0.12538595]
[1674005177153,4.76898224,1572.5,1572.4,0.12538595]
[1674005179095,3.0,1572.5,1572.4,0.12538595]
[1674005179750,14.4748662,1572.5,1572.4,0.12538595]
[1674005180012,20.86606014,1572.5,1572.4,0.12538595]
[1674005180581,27.22536014,1572.5,1572.4,0.12538595]
[1674005180833,28.82954628,1572.5,1572.4,0.12538595]
[1674005181154,29.82601081,1572.5,1572.4,0.12538595]
[1674005181314,29.16166815,1572.5,1572.4,0.12538595]
[1674005181521,28.88634232,1572.5,1572.3,0.02076661]
[1674005181879,7.61153706,1572.4,1572.3,0.02076661]
[1674005182088,26.722531,1572.4,1572.3,0.02076661]
[1674005182412,28.32671714,1572.4,1572.3,0.02076661]
[1674005184254,30.33025261,1572.4,1572.3,0.02076661]
[1674005184464,31.32671714,1572.4,1572.3,0.02076661]
[1674005187043,31.32671714,1572.4,1572.1,0.18053388]
[1674005187044,1.13071011,1572.2,1572.1,0.12977504]
[1674005187261,27.22249731,1572.2,1572.1,0.12977504]
[1674005187562,28.35899072,1572.2,1572.1,0.12977504]
[1674005188348,31.74399342,1572.2,1572.1,0.12977504]
[1674005188809,32.07580998,1572.2,1572.1,0.12977504]
[1674005189019,35.91698324,1572.2,1572.1,0.12977504]
[1674005189423,36.91110739,1572.2,1572.1,0.12977504]
[1674005189668,33.06993413,1572.2,1572.1,0.12977504]
[1674005190484,31.74266788,1572.2,1572.1,0.12977504]
[1674005190699,35.58384114,1572.2,1572.1,0.12977504]
[1674005190925,32.07580998,1572.2,1572.1,0.12977504]
[1674005191304,31.74220114,1572.2,1572.1,0.12977504]
[1674005192457,45.74220114,1572.2,1572.1,0.12977504]
[1674005193336,47.06946739,1572.2,1572.1,0.12977504]
[1674005193532,46.07580998,1572.2,1572.1,0.12977504]
[1674005193746,47.06965496,1572.2,1572.1,0.12977504]
[1674005194338,45.74238871,1572.2,1572.1,0.12977504]
[1674005194550,47.06965496,1572.2,1572.1,0.12977504]
[1674005195234,31.74238871,1572.2,1572.1,0.07977504]
[1674005195553,30.29338871,1572.2,1572.1,0.07977504]
[1674005196590,28.61330536,1572.2,1571.9,1.0795004]
[1674005196815,3.11662407,1572.1,1571.9,1.0795004]
[1674005197107,9.47767407,1572.1,1571.9,1.35042813]
[1674005197324,9.50956801,1572.1,1571.9,1.35042813]
[1674005197548,9.50956801,1572.1,1571.9,1.0795004]
[1674005197791,16.53337964,1572.1,1571.9,1.0795004]
[1674005198138,0.23,1572.0,1571.9,1.0795004]
[1674005198351,6.59132,1572.0,1571.9,1.0795004]
[1674005198606,6.62321394,1572.0,1571.9,1.0795004]
[1674005199308,8.39090873,1572.0,1571.9,1.0795004]
[1674005200611,8.39090738,1572.0,1571.9,1.0795004]
[1674005200765,6.62321394,1572.0,1571.9,1.0795004]
[1674005201749,25.73017248,1572.0,1571.9,1.0795004]
[1674005202183,27.38852208,1572.0,1571.9,1.0795004]
[1674005202664,28.20152209,1572.0,1571.9,1.0795004]
[1674005203085,26.87425584,1572.0,1571.9,1.0795004]
[1674005204359,32.64252209,1572.0,1571.9,1.0795004]
[1674005204625,33.16236529,1572.0,1571.9,1.0795004]
[1674005205708,34.82411638,1572.0,1571.9,1.0795004]
[1674005205883,33.16236529,1572.0,1571.9,1.0795004]
[1674005206767,31.21643502,1572.0,1571.9,1.0795004]
[1674005207431,29.88916877,1572.0,1571.9,1.0795004]
[1674005209662,13.83478711,1572.0,1571.9,1.0795004]
[1674005209879,12.32109893,1572.0,1571.9,1.0795004]
[1674005210023,11.21616609,1572.0,1571.9,1.0795004]
[1674005210499,12.3210881,1572.0,1571.9,1.0795004]
[1674005210886,18.6824081,1572.0,1571.9,1.0795004]
[1674005211615,25.0437281,1572.0,1571.9,1.0795004]
[1674005212339,25.37546976,1572.0,1571.9,1.0795004]
[1674005212817,19.67731906,1572.0,1571.9,1.0795004]
[1674005213848,26.03863906,1572.0,1571.9,1.0795004]
[1674005214984,25.37546976,1572.0,1571.9,1.0795004]
[1674005217236,6.92090866,1571.8,1571.7,9.05525884]
[1674005217451,7.1828026,1571.8,1571.7,1.14475884]
[1674005217603,0.5906726,1571.8,1571.7,1.094]
[1674005217810,0.55877866,1571.8,1571.7,1.094]
[1674005221543,0.55877866,1571.8,1571.7,7.45653]
[1674005221762,0.55877866,1571.8,1571.7,7.50728884]
[1674005223018,0.55877866,1571.8,1571.7,1.14475884]
[1674005223179,0.55877866,1571.8,1571.7,1.094]
[1674005223389,1.22208542,1571.8,1571.6,14.36616237]
[1674005223603,1.22208542,1571.8,1571.6,0.18976237]
[1674005223975,18.05812922,1571.8,1571.6,0.13900353]
[1674005224280,8.36089123,1571.7,1571.6,0.13900353]
[1674005224500,8.39278517,1571.7,1571.6,0.13900353]
[1674005224641,8.39074956,1571.7,1571.6,0.13900353]
[1674005225794,8.39299634,1571.7,1571.6,0.13900353]
[1674005226652,9.38806607,1571.7,1571.6,0.13900353]
[1674005227704,8.39299634,1571.7,1571.6,0.13900353]
[1674005228503,8.72250972,1571.7,1571.6,0.13900353]
[1674005228711,11.83913379,1571.7,1571.6,0.13900353]
[1674005229161,12.50439543,1571.7,1571.6,0.13900353]
[1674005229371,11.83913379,1571.7,1571.6,0.13900353]
[1674005229954,12.5044057,1571.7,1571.6,0.13900353]
[1674005230146,11.83913379,1571.7,1571.6,0.13900353]
[1674005230951,12.50441882,1571.7,1571.6,0.13900353]
[1674005232227,11.50934909,1571.7,1571.6,0.13900353]
[1674005233294,11.83913379,1571.7,1571.6,0.13900353]
[1674005235297,12.50437012,1571.7,1571.6,0.13900353]
[1674005237180,11.50930039,1571.7,1571.6,0.13900353]
[1674005237391,12.50437012,1571.7,1571.6,0.13900353]
[1674005237659,11.50930039,1571.7,1571.6,0.13900353]
[1674005238127,12.50437012,1571.7,1571.6,0.13900353]
[1674005238499,18.86690012,1571.7,1571.6,0.13900353]
[1674005238823,24.56419379,1571.7,1571.6,0.13900353]
[1674005239547,24.89639031,1571.7,1571.6,0.13900353]
[1674005240284,12.50729579,1571.7,1571.6,1.23300353]
[1674005240597,11.50937268,1571.7,1571.6,1.23300353]
[1674005241490,11.50937268,1571.7,1571.6,0.13900353]
[1674005241968,2.03021861,1571.7,1571.6,1.23300353]
[1674005242126,0.22796439,1571.7,1571.6,1.23300353]
[1674005242751,7.61816122,1571.8,1571.6,1.23300353]
[1674005242963,1.25598122,1571.8,1571.6,7.73356943]
[1674005243213,1.22408728,1571.8,1571.6,7.78432827]
[1674005243904,4.7798558,1571.7,1571.6,0.18976237]
[1674005244127,4.7798558,1571.7,1571.6,0.13900353]
[1674005244128,24.53721314,1571.7,1571.6,0.13900353]
[1674005244337,24.56910708,1571.7,1571.6,0.13900353]
[1674005245330,24.89845022,1571.7,1571.6,0.13900353]
[1674005245572,25.89628682,1571.7,1571.6,0.13900353]
[1674005245865,24.89845022,1571.7,1571.6,0.13900353]
[1674005246424,24.89845022,1571.7,1571.6,0.13586542]
[1674005248063,13.17101161,1571.7,1571.6,0.13586542]
[1674005248269,11.84374536,1571.7,1571.6,0.13586542]
[1674005248633,11.51121236,1571.7,1571.6,0.13586542]
[1674005249258,12.50883375,1571.7,1571.6,0.13586542]
[1674005250007,11.51121236,1571.7,1571.6,0.13586542]
[1674005250210,12.50883375,1571.7,1571.6,0.13586542]
[1674005250461,11.51121236,1571.7,1571.6,0.13586542]
[1674005252785,1.80205829,1571.7,1571.6,0.13586542]
[1674005252941,1.25576099,1571.8,1571.6,8.12065751]
[1674005253156,1.22386705,1571.8,1571.7,1.449]
[1674005253605,2.32882538,1571.8,1571.7,1.449]
[1674005254203,2.32882538,1571.8,1571.7,7.81153]
[1674005254420,2.32882538,1571.8,1571.7,9.95335647]
[1674005254738,0.55877866,1571.8,1571.7,22.67841647]
[1674005255144,0.55877866,1571.8,1571.7,24.12241647]
[1674005258932,0.55877866,1571.8,1571.7,25.57141647]
[1674005259193,0.55877866,1571.8,1571.7,28.57141647]
[1674005259570,0.55877866,1571.8,1571.7,31.68804054]
[1674005260736,0.56466326,1571.8,1571.7,31.68804054]
[1674005261929,0.0058846,1571.8,1571.7,31.68804054]
[1674005263442,0.0058846,1571.8,1571.7,27.12241647]
[1674005265073,0.0058846,1571.8,1571.7,27.23904054]
[1674005265202,0.0058846,1571.8,1571.7,30.23904054]
[1674005266252,0.0058846,1571.8,1571.7,27.12241647]
[1674005266465,0.0058846,1571.8,1571.7,36.30311647]
[1674005267095,0.0058846,1571.8,1571.7,46.39741647]
[1674005267783,0.00247934,1571.8,1571.7,46.39741647]
[1674005268145,0.00247934,1571.8,1571.7,49.51404054]
[1674005269848,0.00247934,1571.8,1571.7,48.07004054]
[1674005271311,0.00247934,1571.8,1571.7,41.95341647]
[1674005272834,0.00247934,1571.8,1571.7,35.59088647]
[1674005272981,0.00247934,1571.8,1571.7,25.68828884]
[1674005275566,0.00247934,1571.8,1571.7,19.32575884]
[1674005275872,0.00247934,1571.8,1571.7,10.14505884]
[1674005276084,0.00247934,1571.8,1571.7,0.05075884]
[1674005276299,0.00247934,1571.8,1571.6,6.54934426]
[1674005277183,0.00247934,1571.8,1571.6,0.18662426]
[1674005277494,22.20557341,1571.8,1571.6,0.13586542]
[1674005277706,22.23746735,1571.8,1571.6,0.13586542]
[1674005278519,22.90255574,1571.8,1571.6,0.13586542]
[1674005278729,24.39255778,1571.8,1571.6,0.13586542]
[1674005279704,22.90255574,1571.8,1571.6,0.13586542]
[1674005280078,24.39252301,1571.8,1571.6,0.13586542]
[1674005280511,6.28662407,1571.7,1571.6,0.13586542]
[1674005280733,27.17636584,1571.7,1571.6,0.13586542]
[1674005281299,27.50889884,1571.7,1571.5,0.03370331]
[1674005281454,25.42342943,1571.6,1571.5,0.03370331]
[1674005281644,25.68532337,1571.6,1571.5,0.03370331]
[1674005283244,27.17529064,1571.6,1571.5,0.03370331]
[1674005283477,25.68532337,1571.6,1571.5,0.03370331]
[1674005285617,25.68532337,1571.6,1571.1,0.002]
[1674005285618,0.05298625,1571.3,1571.1,0.002]
[1674005285779,25.76099553,1571.2,1570.9,0.1525288]
[1674005285991,1.442,1571.0,1570.9,0.1525288]
[1674005286246,23.88473407,1571.0,1570.9,0.1525288]
[1674005286554,23.91662801,1571.0,1570.9,0.1525288]
[1674005287337,16.10925801,1571.0,1570.9,0.1525288]
[1674005289983,15.90925801,1571.0,1570.9,0.1525288]
[1674005290196,6.39726394,1571.0,1570.9,0.1525288]
[1674005290551,0.03189394,1571.0,1570.9,0.1525288]
[1674005290765,15.89468394,1571.2,1570.9,0.1525288]
[1674005291114,15.89468394,1571.2,1570.9,0.81964656]
[1674005291328,6.39658394,1571.2,1570.9,0.81964656]
[1674005291919,3.11662407,1571.1,1570.9,0.1525288]
[1674005292226,12.73074,1571.0,1570.9,0.1525288]
[1674005292498,12.76263394,1571.0,1570.9,0.1525288]
[1674005292707,22.24462801,1571.0,1570.9,0.1525288]
[1674005292921,23.91062801,1571.0,1570.9,0.1525288]
[1674005294232,0.03189394,1571.0,1570.9,0.1525288]
[1674005294616,12.76227394,1571.1,1570.9,0.1525288]
[1674005294756,15.87889801,1571.1,1570.9,0.1525288]
[1674005295219,12.76227394,1571.1,1570.9,0.1525288]
[1674005295403,6.39690394,1571.1,1570.9,0.1525288]
[1674005295615,19.12687394,1571.1,1570.9,0.1525288]
[1674005296384,0.03189394,1571.1,1570.9,0.1525288]
[1674005296596,6.39669394,1571.2,1570.9,0.1525288]
[1674005297295,6.39669394,1571.2,1570.9,6.5182988]
[1674005297513,6.39669394,1571.2,1570.9,9.55948656]
[1674005298067,0.03189394,1571.2,1570.9,9.55948656]
[1674005298227,23.15484019,1571.3,1570.9,15.92525656]
[1674005298438,26.27146426,1571.3,1570.9,15.92525656]
[1674005298899,13.96904019,1571.3,1570.9,15.92525656]
[1674005299099,7.60468019,1571.3,1571.0,7.95765566]
[1674005299327,7.60468019,1571.3,1571.0,8.00765566]
[1674005299542,0.08488019,1571.3,1571.0,14.37302566]
[1674005299751,0.05298625,1571.3,1571.1,1.43730257]
[1674005299901,0.05298625,1571.3,1571.1,7.80224257]
[1674005300109,0.05298625,1571.3,1571.1,7.85224257]
[1674005300324,0.05298625,1571.3,1571.1,14.21720257]
[1674005300531,0.05298625,1571.3,1571.1,20.58216257]